bitfinex/quotes_SOLUSD_20250823
["timestamp","ask_amount","ask_price","bid_price","bid_amount"]
[1755933889826,52.97353872,206.02,206.01,0.03]
[1755933891650,13.59559401,206.01,205.93,0.69290191]
[1755933891966,13.59559401,205.97,205.93,0.60290191]
[1755933892144,13.87991715,205.95,205.93,0.60290191]
[1755933892439,52.19991715,205.94,205.93,0.60290191]
[1755933892819,52.88991715,205.94,205.93,0.60290191]
[1755933893232,13.87991715,205.93,205.85,0.67]
[1755933893438,13.87991715,205.91,205.85,0.67]
[1755933893654,38.42,205.9,205.85,0.67]
[1755933893833,38.44,205.9,205.89,9.90580926]
[1755933894032,0.28432314,205.92,205.89,9.90580926]
[1755933894258,0.28432314,205.92,205.83,2.5359272]
[1755933894259,52.31991715,205.92,205.91,9.90580926]
[1755933894834,38.46,205.93,205.9,0.67]
[1755933895060,52.33991715,205.93,205.92,9.90580926]
[1755933895247,53.02991715,205.93,205.88,26.0]
[1755933895438,53.02991715,205.93,205.83,2.5359272]
[1755933895645,52.33991715,205.93,205.92,9.90580926]
[1755933895964,52.33991715,205.93,205.91,9.90580926]
[1755933896268,52.33991715,205.93,205.88,26.67]
[1755933896438,52.33991715,205.93,205.92,9.90580926]
[1755933897041,52.33991715,205.93,205.88,26.0]
[1755933897248,53.02991715,205.93,205.91,9.90580926]
[1755933897450,52.33991715,205.93,205.91,9.90580926]
[1755933898655,53.00991715,205.93,205.9,26.0]
[1755933898831,53.00991715,205.93,205.9,35.90580926]
[1755933899942,14.54991715,205.92,205.87,0.03]
[1755933900266,38.4,205.91,205.9,9.90580926]
[1755933900451,38.4,205.91,205.87,0.7]
[1755933900646,38.4,205.91,205.87,0.03]
[1755933900857,38.4,205.91,205.9,9.90580926]
[1755933901465,38.48922506,205.91,205.9,9.90580926]
[1755933901971,38.48922506,205.91,205.89,26.03]
[1755933902171,38.48922506,205.91,205.9,9.90580926]
[1755933902671,38.46922506,205.91,205.9,9.90580926]
[1755933904568,0.08922506,205.91,205.9,9.90580926]
[1755933905458,0.08922506,205.91,205.9,10.57580926]
[1755933905852,0.08922506,205.91,205.9,0.67]
[1755933906043,0.08922506,205.91,205.9,10.57580926]
[1755933907247,0.09177848,205.93,205.92,26.0]
[1755933907459,0.09177848,205.93,205.92,45.81161852]
[1755933907649,0.10007534,205.95,205.92,49.61964948]
[1755933907850,0.10007534,205.95,205.94,9.90580926]
[1755933908057,38.38,206.02,205.95,9.90580926]
[1755933908366,0.67,206.04,205.96,13.04384022]
[1755933908570,0.67,206.09,205.99,26.0]
[1755933908762,38.38,206.08,206.07,9.90580926]
[1755933909153,39.05,206.08,206.03,26.0]
[1755933909457,0.67,206.07,206.03,35.90580926]
[1755933909655,0.95432314,206.07,206.03,35.90580926]
[1755933910054,0.67,206.06,206.04,9.90580926]
[1755933910248,0.67,206.05,206.04,9.90580926]
[1755933910672,0.67,206.05,205.98,0.67]
[1755933910992,0.67,206.05,206.01,26.0]
[1755933911284,13.59559401,206.09,206.04,9.90580926]
[1755933911589,38.42,206.06,205.99,0.67]
[1755933911747,38.42,206.06,206.0,3.13904319]
[1755933911952,38.42,206.06,206.01,3.13904319]
[1755933912190,38.42,206.06,206.02,29.13904319]
[1755933912357,38.42,206.06,206.03,3.13904319]
[1755933912874,38.42,206.06,206.05,9.90580926]
[1755933913058,39.07,206.06,206.05,9.90580926]
[1755933913576,39.07,206.06,206.05,13.04537317]
[1755933913882,13.59559401,206.07,206.05,3.13956391]
[1755933914058,13.59559401,206.07,206.06,9.90580926]
[1755933914059,14.54991715,206.07,206.06,9.90580926]
[1755933914259,52.94991715,206.07,206.06,9.90580926]
[1755933914864,0.28432314,206.06,206.0,0.67]
[1755933915182,0.28432314,206.06,206.01,3.16625408]
[1755933915377,0.67,206.05,206.02,3.16625408]
[1755933915579,13.93991715,206.06,206.03,3.16668432]
[1755933915876,13.93991715,206.06,206.0,26.0]
[1755933916083,0.06,206.06,206.05,9.90580926]
[1755933916470,0.06,206.06,206.01,0.67]
[1755933916670,0.73,206.06,206.05,9.90580926]
[1755933917178,38.44,206.06,206.05,9.90580926]
[1755933917359,38.44,206.06,206.05,13.07290073]
[1755933917560,39.11,206.06,206.05,9.90580926]
[1755933918559,39.11,206.06,206.01,0.67]
[1755933918885,39.11,206.06,206.05,9.90580926]
[1755933919272,39.11,206.06,206.0,26.0]
[1755933919577,39.11,206.06,206.05,9.90580926]
[1755933920378,38.44,206.06,206.05,9.90580926]
[1755933920973,0.06,206.06,206.05,9.90580926]
[1755933921179,38.4,206.06,206.05,13.07364941]
[1755933921380,38.50057751,206.06,206.05,13.07364941]
[1755933922655,38.50057751,206.06,206.05,3.16784015]
[1755933922968,39.17057751,206.06,206.05,13.07364941]
[1755933923365,38.50057751,206.06,206.05,13.07364941]
[1755933923973,38.50057751,206.06,206.05,13.07418995]
[1755933924459,38.50057751,206.06,206.05,13.07424318]
[1755933925664,39.17057751,206.06,206.05,3.16843392]
[1755933925864,39.17057751,206.06,206.05,13.07424318]
[1755933926768,38.50057751,206.06,206.05,13.07424318]
[1755933927091,39.17057751,206.06,206.05,13.07424318]
[1755933927466,0.83057751,206.06,206.05,13.07424318]
[1755933927792,39.09057751,206.06,206.05,13.07424318]
[1755933928085,39.07057751,206.06,206.05,13.07424318]
[1755933929273,39.07057751,206.06,206.05,9.90580926]
[1755933929468,38.40057751,206.06,206.05,9.90580926]
[1755933929668,39.08057751,206.06,206.05,9.90580926]
[1755933929878,38.40057751,206.06,206.05,9.90580926]
[1755933930489,38.40057751,206.06,206.05,13.07297016]
[1755933930860,0.16057751,206.06,206.05,13.07297016]
[1755933931068,38.38057751,206.06,206.05,13.07297016]
[1755933931461,38.38057751,206.06,206.05,13.75297016]
[1755933931686,38.38057751,206.06,206.05,13.07297016]
[1755933932068,38.38057751,206.06,206.05,13.75297016]
[1755933933098,0.16057751,206.06,206.05,13.75156774]
[1755933933864,0.16057751,206.06,206.05,13.75060349]
[1755933938898,0.09312345,206.07,206.06,9.90580926]
[1755933939187,0.09312345,206.07,206.06,13.07060349]
[1755933939392,0.09312345,206.07,206.06,3.84479423]
[1755933939601,0.09312345,206.07,206.06,13.75060349]
[1755933941518,0.19935786,206.07,206.06,13.75060349]
[1755933941881,0.25940777,206.08,206.07,9.90580926]
[1755933942085,0.25940777,206.08,206.07,10.58580926]
[1755933942386,0.25940777,206.08,206.07,13.74809652]
[1755933942387,0.15304396,206.08,206.07,13.74809652]
[1755933942692,0.15304396,206.08,206.07,10.58580926]
[1755933942898,0.15304396,206.08,206.07,13.74778197]
[1755933943217,0.16655768,206.09,206.08,9.90580926]
[1755933943423,0.16655768,206.09,206.08,13.06778197]
[1755933944419,0.0989378,206.1,206.08,22.97359123]
[1755933944593,0.0989378,206.1,206.09,13.06778197]
[1755933945110,0.0989378,206.1,206.09,3.16197271]
[1755933945311,0.0989378,206.1,206.09,13.06772131]
[1755933946583,0.0989378,206.1,206.09,9.90580926]
[1755933947483,0.0989378,206.1,206.09,13.06949289]
[1755933947688,0.0989378,206.1,206.09,13.74949289]
[1755933947918,0.0989378,206.1,206.09,13.06949289]
[1755933949236,0.7789378,206.1,206.09,3.16368363]
[1755933949437,0.7789378,206.1,206.09,13.07015107]
[1755933950011,0.7789378,206.1,206.09,3.16434181]
[1755933950702,0.7789378,206.1,206.09,3.19434181]
[1755933950933,0.8389378,206.1,206.09,13.10015107]
[1755933951617,0.8389378,206.1,206.09,3.19434181]
[1755933951791,0.8389378,206.1,206.09,13.10015107]
[1755933951992,0.8389378,206.1,206.09,3.19434181]
[1755933952308,0.8389378,206.1,206.09,3.2013466]
[1755933952694,0.8389378,206.1,206.09,13.10715586]
[1755933956106,0.8389378,206.1,206.09,3.2013466]
[1755933956427,0.8389378,206.1,206.09,13.10715586]
[1755933957424,0.8389378,206.1,206.09,3.2013466]
[1755933957634,24.34034107,206.1,206.06,0.03]
[1755933957933,13.87991715,206.08,206.06,0.03]
[1755933958229,51.95991715,206.07,206.06,0.03]
[1755933958405,52.66991715,206.07,206.06,0.03]
[1755933960831,62.57572641,206.07,206.06,0.03]
[1755933961443,13.87991715,206.06,206.04,0.03]
[1755933961649,10.1901324,206.05,205.95,9.90580926]
[1755933961798,0.28432314,205.99,205.94,9.93580926]
[1755933962114,38.87,205.98,205.94,9.93580926]
[1755933962308,0.71,205.97,205.94,9.93580926]
[1755933962627,38.16,205.98,205.96,9.90580926]
[1755933962811,38.14,205.98,205.96,9.90580926]
[1755933963007,38.14,205.98,205.97,9.90580926]
[1755933964426,38.14,205.98,205.95,9.90580926]
[1755933964927,38.14,205.98,205.95,10.60580926]
[1755933965429,38.14,205.98,205.96,0.7]
[1755933965622,38.14,205.98,205.96,10.60580926]
[1755933966204,38.14,205.98,205.96,0.7]
[1755933966402,38.14,205.98,205.96,10.60580926]
[1755933966713,38.14,205.98,205.96,9.90580926]
[1755933966911,38.14,205.98,205.95,9.90580926]
[1755933967236,38.14,205.98,205.95,10.60580926]
[1755933967728,38.14,205.98,205.95,10.63580926]
[1755933968910,0.71,205.97,205.95,0.03]
[1755933969305,38.14,205.98,205.96,9.90580926]
[1755933970107,38.85,205.98,205.96,9.90580926]
[1755933970309,38.85,205.98,205.95,0.03]
[1755933970621,38.85,205.98,205.96,3.15145184]
[1755933971002,0.71,206.03,205.97,10.60580926]
[1755933971205,38.08,206.02,205.99,9.90580926]
[1755933971431,38.08,206.02,205.99,10.60580926]
[1755933971808,38.08,206.02,205.99,0.7]
[1755933972007,38.08,206.02,205.99,9.90580926]
[1755933972198,38.08,206.02,206.0,9.90580926]
[1755933973108,38.08,206.02,206.01,10.60580926]
[1755933973311,38.79,206.02,206.01,3.14873608]
[1755933973518,38.08,206.02,205.99,35.90580926]
[1755933973832,38.08,206.02,206.01,9.90580926]
[1755933974017,38.08,206.02,206.01,13.05450695]
[1755933974219,38.08,206.02,206.01,9.90580926]
[1755933976530,38.79,206.02,205.96,0.7]
[1755933976739,38.79,206.02,205.99,9.90580926]
[1755933976945,0.71,206.01,205.99,9.90580926]
[1755933978045,38.08,206.02,205.99,9.90580926]
[1755933978549,38.79,206.02,205.99,9.90580926]
[1755933978714,38.79,206.02,205.97,0.7]
[1755933978915,14.58991715,206.01,205.95,9.93580926]
[1755933979118,0.71,206.0,205.96,3.14573312]
[1755933979348,38.08,205.99,205.96,3.14573312]
[1755933979580,38.79,205.99,205.96,9.90580926]
[1755933980916,38.08,205.99,205.97,10.60580926]
[1755933981413,38.18408516,205.99,205.97,0.7]
[1755933981628,38.18408516,205.99,205.98,9.90580926]
[1755933982827,38.18408516,205.99,205.95,26.73]
[1755933983038,38.89408516,205.99,205.97,9.90580926]
[1755933983227,0.71,205.98,205.96,9.90580926]
[1755933983642,38.18408516,205.99,205.96,9.90580926]
[1755933984028,38.18408516,205.99,205.96,10.60580926]
[1755933984529,38.18408516,205.99,205.97,9.90580926]
[1755933985648,38.18408516,205.99,205.96,9.93580926]
[1755933985950,38.89408516,205.99,205.96,9.93580926]
[1755933986845,38.18408516,205.99,205.96,10.63580926]
[1755933987041,38.18408516,205.99,205.97,9.90580926]
[1755933987243,38.18408516,205.99,205.97,10.61580926]
[1755933987548,38.18408516,205.99,205.98,9.90580926]
[1755933988528,38.18408516,205.99,205.98,10.61580926]
[1755933989048,13.87991715,205.98,205.96,0.03]
[1755933989235,38.81408516,205.99,205.96,0.03]
[1755933989421,38.18408516,205.99,205.96,9.93580926]
[1755933990050,38.18408516,205.99,205.97,9.90580926]
[1755933990051,0.10408516,205.99,205.97,9.90580926]
[1755933990437,0.10408516,205.99,205.96,10.64580926]
[1755933991335,0.10408516,205.99,205.97,3.14626638]
[1755933991654,0.10408516,205.99,205.97,13.05207564]
[1755933991954,0.10408516,205.99,205.98,9.90580926]
[1755933993049,0.10408516,205.99,205.98,13.76336441]
[1755933994167,0.10408516,205.99,205.98,10.61580926]
[1755933994339,0.10408516,205.99,205.98,13.76457886]
[1755933995643,0.10408516,205.99,205.98,3.8587696]
[1755933995954,0.10408516,205.99,205.98,13.76457886]
[1755933996666,0.10408516,205.99,205.98,3.8587696]
[1755933996833,0.10408516,205.99,205.98,13.76457886]
[1755933997164,0.10408516,205.99,205.98,3.1487696]
[1755933997365,0.10408516,205.99,205.98,3.15291609]
[1755933997565,0.10408516,205.99,205.98,3.15320925]
[1755933998244,0.10408516,205.99,205.98,3.15468256]
[1755933998973,0.10408516,205.99,205.98,13.06049182]
[1755933999750,0.10408516,205.99,205.98,3.15468256]
[1755934001464,0.19381471,205.99,205.98,3.15468256]
[1755934002558,0.08972955,205.99,205.98,3.15468256]
[1755934003162,0.08972955,205.99,205.98,3.86468256]
[1755934003368,0.08972955,205.99,205.98,13.77049182]
[1755934003570,0.08972955,205.99,205.98,13.06049182]
[1755934003946,0.14972955,205.99,205.98,13.06049182]
[1755934005354,0.14972955,205.99,205.98,13.77049182]
[1755934005867,0.14972955,205.99,205.98,3.86468256]
[1755934006068,0.14972955,205.99,205.98,3.15468256]
[1755934006647,0.14972955,205.99,205.98,3.86468256]
[1755934006975,0.14972955,205.99,205.98,3.87903674]
[1755934007872,0.14972955,205.99,205.98,3.87910139]
[1755934008671,0.14972955,205.99,205.98,3.16910139]
[1755934009747,0.77972955,205.99,205.98,3.16910139]
[1755934009966,0.14972955,205.99,205.98,3.16941597]
[1755934010171,0.14972955,205.99,205.98,3.87941597]
[1755934010474,0.14972955,205.99,205.98,13.78522523]
[1755934010782,0.14972955,205.99,205.98,3.87941597]
[1755934011343,0.14972955,205.99,205.98,3.16941597]
[1755934014679,52.7996467,205.99,205.98,3.16941597]
[1755934015859,62.70545596,205.99,205.98,3.16941597]
[1755934016064,0.28432314,205.98,205.96,0.03]
[1755934016266,0.28432314,205.98,205.97,3.37987489]
[1755934019262,0.14972955,205.99,205.97,13.94568415]
[1755934019606,0.14972955,205.99,205.98,13.94568415]
[1755934020362,0.14972955,205.99,205.98,4.03987489]
[1755934020568,0.14972955,205.99,205.98,13.94568415]
[1755934021373,0.25588895,205.99,205.98,13.94496306]
[1755934022383,0.1661594,205.99,205.98,13.94496306]
[1755934022766,0.1661594,205.99,205.98,30.0391538]
[1755934022987,0.1661594,205.99,205.98,39.28496306]
[1755934023189,0.1661594,205.99,205.98,39.94496306]
[1755934024191,0.1661594,205.99,205.98,36.56580926]
[1755934024389,0.1661594,205.99,205.98,39.94503829]
[1755934024855,0.1661594,205.99,205.98,39.9450189]
[1755934026583,0.1661594,205.99,205.98,13.2850189]
[1755934026887,62.68188581,205.99,205.98,3.37920964]
[1755934028491,62.68188581,205.99,205.97,0.03]
[1755934029365,0.63,205.98,205.97,0.03]
[1755934030180,9.90580926,205.98,205.97,0.03]
[1755934030688,10.53580926,205.98,205.97,0.03]
[1755934030897,9.90580926,205.98,205.97,0.03]
[1755934031077,24.41572641,205.98,205.97,0.03]
[1755934031463,26.35912541,205.98,205.97,0.03]
[1755934032763,64.53912541,205.98,205.97,0.03]
[1755934033479,51.77559401,205.98,205.97,0.03]
[1755934033784,51.77559401,205.98,205.97,0.69]
[1755934034993,38.18,205.98,205.97,0.69]
[1755934035661,38.18,205.98,205.97,0.03]
[1755934037567,38.18,205.98,205.97,3.18462496]
[1755934039490,38.18,205.98,205.97,3.18483595]
[1755934039689,48.08580926,205.98,205.97,3.18483595]
[1755934040186,62.31140327,205.98,205.97,0.03]
[1755934040586,65.49623927,205.98,205.97,0.03]
[1755934040897,65.78056241,205.98,205.97,0.03]
[1755934041276,65.868627,205.98,205.97,0.03]
[1755934042284,73.25581143,205.98,205.97,0.03]
[1755934043399,68.40097116,205.98,205.97,0.03]
[1755934043769,68.40097116,205.98,205.94,0.03]
[1755934043770,39.59559401,205.95,205.94,0.03]
[1755934043974,26.0,205.91,205.83,0.66]
[1755934044176,13.59559401,205.85,205.83,0.66]
[1755934044474,9.90581,205.9,205.83,9.90580926]
[1755934044688,51.75559401,205.89,205.84,9.90580926]
[1755934044995,38.16,205.88,205.85,10.56580926]
[1755934045196,38.16,205.88,205.86,0.66]
[1755934046193,38.16,205.88,205.85,9.90580926]
[1755934046509,38.16,205.88,205.87,0.66]
[1755934047580,38.16,205.88,205.87,0.72]
[1755934048793,13.59559401,205.89,205.87,0.72]
[1755934048995,38.2,205.88,205.87,0.72]
[1755934049204,38.2,205.88,205.8,26.0]
[1755934049205,38.2,205.88,205.85,9.90580926]
[1755934049406,38.2,205.88,205.8,26.0]
[1755934049600,38.2,205.88,205.85,9.90580926]
[1755934049897,38.2,205.88,205.86,0.72]
[1755934051192,38.2,205.88,205.87,10.62580926]
[1755934051396,38.2,205.88,205.87,0.72]
[1755934052996,38.2,205.88,205.87,10.62580926]
[1755934055686,38.16,205.89,205.87,0.72]
[1755934056387,38.16,205.89,205.88,0.72]
[1755934057613,38.14,205.89,205.88,0.72]
[1755934057981,38.14,205.89,205.86,10.65580926]
[1755934058186,38.14,205.89,205.87,0.72]
[1755934059389,38.14,205.89,205.88,0.72]
[1755934060016,38.14,205.89,205.86,9.93580926]
[1755934060396,38.14,205.89,205.86,10.65580926]
[1755934060601,38.14,205.89,205.86,0.03]
[1755934061113,38.14,205.89,205.86,0.75]
[1755934061319,0.09872244,205.87,205.86,0.75]
[1755934062029,0.09872244,205.87,205.86,10.65580926]
[1755934067114,0.09872244,205.87,205.86,0.75]
[1755934067427,0.09872244,205.87,205.86,10.65580926]
[1755934068899,0.09872244,205.87,205.86,0.75]
[1755934069101,0.09872244,205.87,205.86,10.65580926]
[1755934071735,0.09872244,205.87,205.86,0.75]
[1755934072198,0.09872244,205.87,205.86,10.65580926]
[1755934075942,0.09872244,205.87,205.86,0.75]
[1755934076134,0.09872244,205.87,205.86,10.65580926]
[1755934077159,0.09872244,205.87,205.86,0.75]
[1755934077330,0.09872244,205.87,205.86,10.65580926]
[1755934078142,0.09872244,205.87,205.86,0.75]
[1755934078445,0.09872244,205.87,205.86,7.11281514]
[1755934079432,0.09872244,205.87,205.86,0.75]
[1755934079611,0.09872244,205.87,205.86,7.08281514]
[1755934081327,0.20248152,205.87,205.86,7.08281514]
[1755934081837,0.20248152,205.87,205.86,0.72]
[1755934082040,0.20248152,205.87,205.86,0.03]
[1755934082460,0.10375908,205.87,205.86,0.03]
[1755934084324,0.73375908,205.87,205.86,0.03]
[1755934084535,20.97649137,205.87,205.86,0.03]
[1755934085126,59.07649137,205.87,205.86,0.03]
[1755934086342,38.20375908,205.87,205.86,0.03]
[1755934086957,38.20375908,205.87,205.86,3.49632807]
[1755934087828,38.20375908,205.87,205.86,3.49625446]
[1755934088233,38.22375908,205.87,205.86,3.49625446]
[1755934091061,48.79949329,205.87,205.86,3.49625446]
[1755934091869,38.22375908,205.87,205.86,3.49625446]
[1755934092192,48.16949329,205.87,205.86,3.49625446]
[1755934092847,38.22375908,205.87,205.86,3.49625446]
[1755934093046,48.16949329,205.87,205.86,3.49625446]
[1755934095843,48.16949329,205.87,205.86,0.03]
[1755934095844,62.67941044,205.87,205.86,0.03]
[1755934096063,77.26340144,205.87,205.86,0.03]
[1755934101376,77.36340831,205.87,205.86,0.03]
[1755934102499,77.25964923,205.87,205.86,0.03]
[1755934104884,77.25964923,205.87,205.83,0.03]
[1755934104885,39.59559401,205.84,205.83,0.03]
[1755934105059,87.94565136,205.84,205.83,0.03]
[1755934105504,23.59559401,205.82,205.81,0.03]
[1755934105682,52.01991715,205.82,205.81,0.03]
[1755934105880,62.59565136,205.82,205.81,0.03]
[1755934106199,13.87991715,205.82,205.81,0.03]
[1755934106362,61.96565136,205.82,205.81,0.03]
[1755934107606,62.59565136,205.82,205.81,0.03]
[1755934108098,61.96565136,205.82,205.81,0.03]
[1755934108704,62.59565136,205.82,205.81,0.03]
[1755934109664,72.54138536,205.82,205.81,0.03]
[1755934110797,23.82565115,205.82,205.81,0.03]
[1755934110963,71.89138536,205.82,205.81,0.03]
[1755934112975,23.82565115,205.82,205.81,0.03]
[1755934113283,61.66132801,205.82,205.81,0.03]
[1755934113465,71.60706222,205.82,205.81,0.7]
[1755934113675,71.89138536,205.82,205.81,0.03]
[1755934116166,23.82565115,205.82,205.81,0.7]
[1755934116366,61.94565115,205.82,205.81,0.03]
[1755934116566,71.89138536,205.82,205.81,0.03]
[1755934121509,71.99740055,205.82,205.81,0.03]
[1755934124578,62.05166634,205.82,205.81,0.03]
[1755934124781,71.99740055,205.82,205.81,0.03]
[1755934125007,62.05166634,205.82,205.81,0.03]
[1755934125390,64.58551418,205.82,205.81,0.03]
[1755934125591,74.53124839,205.82,205.81,0.03]
[1755934127810,64.58551418,205.82,205.81,0.03]
[1755934128119,74.53124839,205.82,205.81,0.03]
[1755934129213,64.58551418,205.82,205.81,0.03]
[1755934129411,74.53124839,205.82,205.81,0.03]
[1755934131235,64.58551418,205.82,205.81,0.03]
[1755934131806,74.53124839,205.82,205.81,0.03]
[1755934132427,70.9551085,205.82,205.81,0.03]
[1755934136807,71.5851085,205.82,205.81,0.03]
[1755934141551,155.54757292,205.82,205.81,0.03]
[1755934142055,76.54757292,205.82,205.81,0.03]
[1755934142418,76.44155773,205.82,205.81,0.03]
[1755934143849,76.42155773,205.82,205.81,0.03]
[1755934144023,38.32155773,205.82,205.81,0.03]
[1755934144227,76.42155773,205.82,205.81,0.03]
[1755934146645,76.44155773,205.82,205.81,0.03]
[1755934149253,70.07196341,205.82,205.81,0.03]
[1755934149425,75.81155773,205.82,205.81,0.03]
[1755934149754,76.44155773,205.82,205.81,0.03]
[1755934152630,75.81155773,205.82,205.81,0.03]
[1755934153555,75.79155773,205.82,205.81,0.03]
[1755934155325,26.0,205.79,205.78,0.03]
[1755934155574,70.46959432,205.79,205.78,0.03]
[1755934156039,79.37390948,205.79,205.78,0.03]
[1755934156536,79.37390948,205.79,205.78,0.74]
[1755934157563,13.87991715,205.78,205.69,5.63959432]
[1755934157752,38.1,205.77,205.75,0.03]
[1755934157953,6.36959432,205.76,205.75,0.03]
[1755934159251,20.96067932,205.76,205.75,0.03]
[1755934159657,98.41897375,205.76,205.5,10.0]
[1755934159844,13.87991715,205.75,205.72,0.71]
[1755934160043,6.36959432,205.73,205.72,0.71]
[1755934160765,20.24951147,205.73,205.72,0.71]
[1755934161571,20.34388486,205.73,205.72,0.71]
[1755934162146,13.97429054,205.73,205.72,0.71]
[1755934162340,20.34388486,205.73,205.72,0.71]
[1755934163363,26.71347986,205.73,205.72,0.71]
[1755934163775,20.34388554,205.73,205.72,0.71]
[1755934163983,26.71347986,205.73,205.72,0.71]
[1755934164368,64.81347986,205.73,205.72,0.71]
[1755934164878,58.44388554,205.73,205.72,0.71]
[1755934165083,64.81347986,205.73,205.72,0.71]
[1755934166162,58.44388554,205.73,205.72,0.71]
[1755934166358,64.81347986,205.73,205.72,0.71]
[1755934166970,26.71347986,205.73,205.72,0.71]
[1755934167175,64.81347986,205.73,205.72,0.71]
[1755934168982,58.44388554,205.73,205.72,0.71]
[1755934169180,64.81347986,205.73,205.72,0.71]
[1755934169364,26.71347986,205.73,205.72,0.71]
[1755934169561,58.44388554,205.73,205.72,0.71]
[1755934169864,64.81347986,205.73,205.72,0.71]
[1755934171160,65.48347986,205.73,205.69,0.7]
[1755934171360,6.36959432,205.7,205.64,6.39959432]
[1755934171562,38.1,205.69,205.64,6.39959432]
[1755934171876,52.694634,205.69,205.64,6.39959432]
[1755934172182,52.694634,205.69,205.65,0.7]
[1755934172574,38.1,205.69,205.65,0.7]
[1755934172774,6.399594,205.68,205.65,7.06959432]
[1755934173078,38.1,205.67,205.66,0.7]
[1755934174072,38.1,205.67,205.66,7.06959432]
[1755934174395,38.1,205.67,205.66,7.069594]
[1755934174570,38.1,205.67,205.66,0.7]
[1755934175075,38.1,205.67,205.66,7.06959432]
[1755934177371,38.1,205.67,205.66,0.7]
[1755934177570,38.1,205.67,205.66,7.06959432]
[1755934178283,38.1,205.67,205.66,10.66186175]
[1755934181366,38.19824815,205.67,205.66,10.66186175]
[1755934182679,38.86824815,205.67,205.64,0.03]
[1755934182884,38.86824815,205.67,205.64,9.99186175]
[1755934183209,0.09824815,205.67,205.66,9.96186175]
[1755934183416,38.17824815,205.67,205.66,0.7]
[1755934189588,38.17824815,205.67,205.66,0.73]
[1755934191691,38.17824815,205.67,205.66,0.03]
[1755934192679,0.09824815,205.67,205.66,0.03]
[1755934192879,38.17824815,205.67,205.66,0.73]
[1755934193082,38.17824815,205.67,205.66,0.03]
[1755934193497,38.84824815,205.67,205.66,0.03]
[1755934193983,38.17824815,205.67,205.66,0.03]
[1755934194725,38.17824815,205.67,205.66,10.69186175]
[1755934194886,0.09824815,205.67,205.66,10.69186175]
[1755934195084,38.17824815,205.67,205.66,3.99092145]
[1755934195314,38.17824815,205.67,205.66,15.8982612]
[1755934195816,0.1024009,205.69,205.68,26.0]
[1755934196113,0.09678501,205.72,205.68,23.70897534]
[1755934196316,0.09700157,205.73,205.71,35.96186175]
[1755934196491,0.08863033,205.74,205.72,13.2227832]
[1755934196684,0.08863033,205.74,205.71,26.0]
[1755934196685,0.08863033,205.74,205.73,13.2227832]
[1755934196999,0.08863033,205.74,205.73,15.8674102]
[1755934197327,0.08863033,205.74,205.73,12.60648875]
[1755934197513,0.08946762,205.76,205.73,15.85887181]
[1755934197700,0.08946762,205.76,205.74,39.91424481]
[1755934199617,0.08946762,205.76,205.75,13.91424481]
[1755934200329,0.06,205.79,205.77,26.0]
[1755934200625,0.06,205.83,205.79,26.0]
[1755934200828,0.06,205.83,205.82,35.96186175]
[1755934201027,0.06,205.83,205.82,39.20801448]
[1755934201235,0.06,205.83,205.82,39.90801448]
[1755934201437,0.09426093,205.85,205.83,13.59559401]
[1755934201641,0.15411849,205.86,205.84,39.90801448]
[1755934201807,0.15926823,205.88,205.87,26.0]
[1755934202012,0.15926823,205.88,205.87,39.20801448]
[1755934202316,0.06,205.93,205.87,40.39375791]
[1755934202524,0.06,205.93,205.91,26.0]
[1755934202833,0.06,205.96,205.91,49.15585394]
[1755934203040,0.06,205.96,205.95,9.96186175]
[1755934203221,0.06,205.96,205.95,13.19399219]
[1755934203422,0.75,205.96,205.94,9.96186175]
[1755934203734,13.59559401,205.94,205.91,1.942832]
[1755934204036,13.59559401,205.94,205.82,42.03188928]
[1755934204037,0.69,205.93,205.86,9.96186175]
[1755934204244,38.04,205.92,205.89,9.96186175]
[1755934204421,13.595594,205.95,205.91,9.96186175]
[1755934204736,38.73,205.94,205.93,9.96186175]
[1755934204939,38.04,205.94,205.93,9.96186175]
[1755934205615,38.73,205.94,205.86,39.595594]